bitfinex/quotes_SOLUSD_20250316
["timestamp","ask_amount","ask_price","bid_price","bid_amount"]
[1742155459116,26.22964886,127.23,127.2,16.87435262]
[1742155459835,16.87435262,127.27,127.22,16.87435262]
[1742155460126,26.22964886,127.27,127.23,16.87435262]
[1742155460419,7.58,127.27,127.24,16.87435262]
[1742155460921,0.03,127.28,127.26,16.87435262]
[1742155461104,0.03,127.28,127.27,16.87435262]
[1742155462505,0.03,127.28,127.27,23.16015262]
[1742155462907,0.03,127.28,127.27,16.87435262]
[1742155464115,0.03,127.28,127.25,6.2865]
[1742155464429,0.03,127.28,127.27,16.87435262]
[1742155464620,0.03,127.28,127.27,25.08587576]
[1742155465832,0.03,127.34,127.29,6.2848]
[1742155466018,18.67964886,127.34,127.3,16.87435262]
[1742155466226,18.67964886,127.34,127.29,16.87435262]
[1742155467434,4.67353911,127.33,127.29,16.87435262]
[1742155468632,6.2828,127.33,127.29,16.87435262]
[1742155468943,6.2828,127.33,127.3,16.87435262]
[1742155469233,6.2828,127.33,127.24,8.06936157]
[1742155469234,16.87435262,127.31,127.24,8.06936157]
[1742155469469,7.58,127.3,127.26,16.87435262]
[1742155469626,16.87435262,127.28,127.23,16.87435262]
[1742155469926,18.64964886,127.29,127.24,16.87435262]
[1742155470133,4.67591985,127.29,127.26,16.87435262]
[1742155470328,23.32556871,127.29,127.26,16.87435262]
[1742155470632,6.2853,127.28,127.24,16.87435262]
[1742155470804,18.64964886,127.26,127.22,16.87435262]
[1742155471006,18.64964886,127.24,127.21,16.87435262]
[1742155471443,7.58,127.25,127.22,16.87435262]
[1742155472644,6.2878,127.23,127.21,16.87435262]
[1742155472838,6.2878,127.23,127.2,16.93735262]
[1742155473041,6.2878,127.23,127.21,16.87435262]
[1742155473337,6.2878,127.23,127.21,27.04961275]
[1742155475014,7.58,127.25,127.21,27.04961275]
[1742155475215,13.8669,127.25,127.21,27.04961275]
[1742155476237,18.64964886,127.24,127.2,27.11261275]
[1742155476819,6.2878,127.23,127.2,27.11261275]
[1742155477426,10.97704997,127.23,127.2,27.11261275]
[1742155477717,4.68924997,127.23,127.21,27.04961275]
[1742155477925,4.68924997,127.23,127.22,27.04961275]
[1742155478820,6.2864,127.26,127.22,27.04961275]
[1742155479119,6.2864,127.26,127.23,27.04961275]
[1742155479320,6.2864,127.26,127.22,27.04961275]
[1742155479515,33.33601275,127.26,127.21,27.04961275]
[1742155480119,4.68920958,127.25,127.21,27.04961275]
[1742155480433,4.68920958,127.25,127.2,27.11261275]
[1742155480623,4.68920958,127.25,127.21,27.04961275]
[1742155481211,10.97600958,127.25,127.22,27.04961275]
[1742155481630,4.68920958,127.24,127.22,27.04961275]
[1742155481830,4.68920958,127.24,127.23,27.04961275]
[1742155483122,4.68920958,127.24,127.23,33.33741275]
[1742155483334,4.68920958,127.24,127.23,27.04961275]
[1742155485032,10.97650958,127.24,127.23,27.04961275]
[1742155485221,6.2873,127.24,127.22,27.04961275]
[1742155485421,6.2873,127.24,127.21,27.04961275]
[1742155486351,6.2873,127.24,127.2,27.11261275]
[1742155486655,6.2873,127.24,127.21,0.063]
[1742155486826,4.69064381,127.23,127.21,0.063]
[1742155487025,6.2883,127.22,127.21,0.063]
[1742155487244,10.97864381,127.23,127.21,27.11261275]
[1742155488238,4.69064381,127.23,127.21,27.11261275]
[1742155488540,4.69064381,127.23,127.22,27.04961275]
[1742155488745,4.69064381,127.23,127.21,27.11261275]
[1742155489041,6.2873,127.24,127.21,27.11261275]
[1742155489245,49.05341275,127.25,127.21,0.063]
[1742155490245,4.6910168,127.24,127.21,0.063]
[1742155491133,4.6910168,127.24,127.21,27.11261275]
[1742155491444,10.9786168,127.24,127.21,27.11261275]
[1742155491624,4.6910168,127.23,127.21,27.11261275]
[1742155493046,4.6910168,127.22,127.21,27.11261275]
[1742155493442,10.9793168,127.22,127.21,0.063]
[1742155493951,4.6910168,127.22,127.21,0.063]
[1742155494261,4.6910168,127.22,127.21,27.11261275]
[1742155495345,4.6910168,127.22,127.21,16.96671769]
[1742155496247,13.8669,127.25,127.21,16.96671769]
[1742155496449,13.8669,127.25,127.22,16.90371769]
[1742155497232,13.8669,127.25,127.21,0.063]
[1742155497233,7.58,127.25,127.23,16.90371769]
[1742155497537,6.2859,127.27,127.24,16.90371769]
[1742155497730,6.2859,127.27,127.23,16.90371769]
[1742155497936,23.18961769,127.27,127.22,16.90371769]
[1742155498237,22.0005,127.27,127.23,16.90371769]
[1742155498449,6.2859,127.27,127.23,16.90371769]
[1742155499038,4.69026519,127.26,127.24,16.90371769]
[1742155499472,4.69026519,127.26,127.23,16.90371769]
[1742155500746,4.69026519,127.25,127.23,16.90371769]
[1742155501351,4.69026519,127.25,127.21,16.96671769]
[1742155501549,6.2873,127.24,127.21,0.063]
[1742155502136,10.97756519,127.24,127.21,0.063]
[1742155502655,4.69026519,127.24,127.21,16.96671769]
[1742155502853,4.69026519,127.24,127.23,16.90371769]
[1742155503557,6.2859,127.27,127.23,16.90371769]
[1742155503741,6.2859,127.27,127.24,16.90371769]
[1742155504058,24.96494886,127.28,127.24,16.90371769]
[1742155504462,24.96494886,127.28,127.23,16.90371769]
[1742155505151,4.69257067,127.27,127.23,16.90371769]
[1742155505456,6.2863,127.26,127.23,16.90371769]
[1742155507363,4.69257067,127.25,127.22,16.90371769]
[1742155507563,10.97987067,127.25,127.21,16.96671769]
[1742155508067,10.97987067,127.25,127.21,0.063]
[1742155508362,4.69257067,127.24,127.21,16.96671769]
[1742155509772,10.98047067,127.23,127.21,0.063]
[1742155510949,4.69257067,127.22,127.21,0.063]
[1742155511958,10.98087067,127.22,127.21,0.063]
[1742155512157,4.69257067,127.22,127.21,0.063]
[1742155512353,10.98087067,127.22,127.21,0.063]
[1742155514649,29.63051953,127.22,127.21,0.063]
[1742155515072,4.69257067,127.22,127.21,0.063]
[1742155515283,4.69257067,127.22,127.21,16.96671769]
[1742155515449,4.69257067,127.22,127.21,18.53181769]
[1742155516650,4.69257067,127.22,127.21,24.82061769]
[1742155516970,4.69257067,127.22,127.21,25.10494083]
[1742155517348,0.03,127.28,127.21,60.65522483]
[1742155517577,0.03,127.28,127.26,16.90371769]
[1742155520261,0.03,127.28,127.27,16.90371769]
[1742155521681,0.03,127.28,127.27,24.75461769]
[1742155522874,0.03,127.28,127.27,18.46881769]
[1742155523082,0.03,127.28,127.25,16.90371769]
[1742155524279,0.03,127.28,127.24,18.40421769]
[1742155524459,0.03,127.28,127.23,16.90371769]
[1742155524460,43.14336655,127.28,127.23,16.90371769]
[1742155525159,7.59,127.28,127.25,16.90371769]
[1742155525555,13.8756,127.28,127.24,16.90371769]
[1742155526577,30.77931769,127.28,127.23,16.90371769]
[1742155527376,46.49261769,127.28,127.23,16.90371769]
[1742155527879,46.49261769,127.28,127.22,16.90371769]
[1742155527880,16.90371769,127.27,127.22,16.90371769]
[1742155529087,6.2863,127.26,127.22,16.90371769]
[1742155529879,6.2863,127.26,127.23,16.90371769]
[1742155530086,6.2859,127.27,127.24,16.90371769]
[1742155530262,6.2859,127.27,127.23,16.90371769]
[1742155532183,6.2859,127.27,127.24,16.90371769]
[1742155532562,6.2859,127.27,127.23,16.90371769]
[1742155533062,6.2859,127.27,127.24,16.90371769]
[1742155533986,0.03,127.28,127.26,16.90371769]
[1742155534176,0.03,127.28,127.27,16.90371769]
[1742155534957,0.03,127.28,127.26,18.43541769]
[1742155535160,0.03,127.28,127.26,16.90371769]
[1742155535357,0.03,127.28,127.27,16.90371769]
[1742155536389,0.03,127.28,127.27,23.47384083]
[1742155536579,6.3125,127.34,127.28,0.28432314]
[1742155536966,16.90371769,127.33,127.27,1.67386157]
[1742155537166,16.90371769,127.33,127.28,16.90371769]
[1742155537588,6.2833,127.32,127.28,16.90371769]
[1742155538090,23.18701769,127.32,127.27,18.43541769]
[1742155539476,6.2833,127.32,127.29,16.90371769]
[1742155539986,6.2833,127.32,127.28,16.90371769]
[1742155540193,6.2829,127.33,127.29,16.90371769]
[1742155540393,6.2829,127.33,127.3,16.90371769]
[1742155540591,6.3125,127.34,127.3,16.90371769]
[1742155540798,6.3125,127.34,127.31,16.90371769]
[1742155540974,0.03,127.34,127.32,16.90371769]
[1742155541699,0.03,127.34,127.33,16.90371769]
[1742155542068,0.03,127.34,127.31,16.90371769]
[1742155543695,0.03,127.34,127.29,6.54596157]
[1742155543909,0.03,127.34,127.3,16.90371769]
[1742155544366,0.03,127.34,127.33,16.90371769]
[1742155545271,0.03,127.34,127.33,18.45081769]
[1742155547297,0.03,127.34,127.33,24.73361769]
[1742155547593,0.03,127.34,127.33,18.45081769]
[1742155547794,0.03,127.34,127.33,24.73361769]
[1742155549391,0.03,127.34,127.33,18.45081769]
[1742155549698,0.03,127.34,127.32,16.90371769]
[1742155549899,0.03,127.34,127.33,16.90371769]
[1742155552688,0.03,127.34,127.33,23.18651769]
[1742155553194,0.03,127.34,127.33,23.47084083]
[1742155555176,0.03,127.35,127.33,43.29794898]
[1742155555376,0.03,127.35,127.34,16.90371769]
[1742155556183,0.03,127.35,127.32,97.84587926]
[1742155556779,0.03,127.35,127.32,97.70371769]
[1742155556978,0.03,127.35,127.33,16.90371769]
[1742155557376,0.03,127.35,127.32,97.70371769]
[1742155558686,0.03,127.35,127.32,80.8]
[1742155558998,16.93371769,127.35,127.3,18.54161769]
[1742155559179,6.2823,127.34,127.3,18.54161769]
[1742155559704,6.312,127.35,127.31,16.90371769]
[1742155560085,6.312,127.35,127.32,16.90371769]
[1742155560396,0.03,127.35,127.32,16.90371769]
[1742155560695,6.3119,127.35,127.32,16.90371769]
[1742155560896,6.3119,127.35,127.31,16.90371769]
[1742155561590,0.03,127.35,127.32,16.90371769]
[1742155562298,0.03,127.35,127.31,16.90371769]
[1742155562687,0.03,127.35,127.3,18.54161769]
[1742155562891,16.93371769,127.35,127.3,18.54161769]
[1742155563676,16.90371769,127.34,127.28,16.96671769]
[1742155564500,16.90371769,127.33,127.28,16.96671769]
[1742155565297,6.2833,127.32,127.28,16.96671769]
[1742155565797,0.03,127.35,127.29,16.90371769]
[1742155565989,0.03,127.35,127.31,16.90371769]
[1742155566195,6.3119,127.35,127.31,16.90371769]
[1742155567012,6.3119,127.35,127.29,0.28432314]
[1742155567190,6.3119,127.35,127.31,16.90371769]
[1742155567801,23.21561769,127.35,127.3,16.90371769]
[1742155568698,16.90371769,127.34,127.29,16.90371769]
[1742155569086,23.21561769,127.35,127.3,16.90371769]
[1742155569404,23.21561769,127.35,127.31,16.90371769]
[1742155569405,0.03,127.35,127.31,16.90371769]
[1742155569595,0.03,127.35,127.32,16.90371769]
[1742155570991,0.03,127.35,127.31,16.90371769]
[1742155573008,0.03,127.41,127.34,36.90371769]
[1742155573208,7.57,127.41,127.38,16.90371769]
[1742155573414,13.849,127.41,127.37,16.90371769]
[1742155574389,13.849,127.41,127.36,16.90371769]
[1742155574589,16.93371769,127.4,127.35,16.90371769]
[1742155574803,16.93371769,127.4,127.34,16.90371769]
[1742155575017,16.90371769,127.38,127.33,16.90371769]
[1742155575223,16.90371769,127.36,127.3,1.68476157]
[1742155575413,24.44371769,127.36,127.3,24.87277926]
[1742155575611,24.44371769,127.36,127.31,16.90371769]
[1742155576417,6.2819,127.35,127.31,16.90371769]
[1742155576613,6.2819,127.35,127.29,312.20516157]
[1742155576614,16.90371769,127.34,127.29,16.96671769]
[1742155576817,18.64964886,127.34,127.29,0.063]
[1742155577010,16.90371769,127.31,127.29,0.063]
[1742155577321,17.82681769,127.3,127.29,0.063]
[1742155577615,0.9231,127.3,127.29,0.063]
[1742155577997,7.54,127.31,127.29,0.063]
[1742155578587,23.18701769,127.32,127.29,0.063]
[1742155578913,13.8233,127.32,127.29,0.063]
[1742155579115,7.54,127.32,127.29,0.063]
[1742155579320,6.283,127.33,127.29,0.063]
[1742155579496,12.3203,127.34,127.3,16.90371769]
[1742155579697,12.3203,127.34,127.29,16.96671769]
[1742155580097,29.22401769,127.34,127.29,16.96671769]
[1742155580318,12.3203,127.34,127.29,16.96671769]
[1742155580690,7.54,127.36,127.33,16.90371769]
[1742155581122,7.54,127.36,127.32,16.90371769]
[1742155582115,7.54,127.36,127.31,16.90371769]
[1742155582319,16.90371769,127.35,127.3,16.90371769]
[1742155582523,23.18591769,127.35,127.3,16.90371769]
[1742155584022,23.18591769,127.35,127.29,16.96671769]
[1742155584729,16.90371769,127.34,127.29,16.96671769]
[1742155584910,16.90371769,127.33,127.29,0.063]
[1742155585097,16.90371769,127.34,127.29,16.96671769]
[1742155585303,23.18591769,127.35,127.3,16.90371769]
[1742155585504,13.8215,127.36,127.32,16.90371769]
[1742155586727,7.54,127.36,127.33,16.90371769]
[1742155586925,68.0318379,127.4,127.35,16.90371769]
[1742155587107,7.54,127.38,127.35,16.90371769]
[1742155587307,7.54,127.38,127.34,16.90371769]
[1742155589566,13.8208,127.38,127.34,16.90371769]
[1742155589729,13.8208,127.38,127.33,16.90371769]
[1742155590327,13.8208,127.38,127.34,16.90371769]
[1742155593922,13.8508,127.38,127.34,16.90371769]
[1742155595029,13.8508,127.38,127.32,6.56752314]
[1742155595331,13.8508,127.38,127.34,16.90371769]
[1742155596028,13.8508,127.38,127.33,16.90371769]
[1742155598519,13.8508,127.38,127.3,91.14800079]
[1742155598825,16.90371769,127.34,127.29,16.96671769]
[1742155599028,7.54,127.33,127.31,16.90371769]
[1742155599213,7.54,127.33,127.3,16.90371769]
[1742155599929,7.54,127.33,127.29,16.96671769]
[1742155600333,6.2833,127.32,127.29,16.96671769]
[1742155600841,6.2833,127.32,127.29,0.063]
[1742155602134,6.2833,127.32,127.29,16.96671769]
[1742155602339,6.2833,127.32,127.29,0.063]
[1742155602340,23.18701769,127.32,127.29,0.063]
[1742155602531,16.90371769,127.31,127.29,0.063]
[1742155603510,30.72701769,127.32,127.29,0.063]
[1742155604942,24.44371769,127.32,127.29,0.063]
[1742155605443,30.72711769,127.32,127.29,0.063]
[1742155605608,24.44371769,127.32,127.29,0.063]
[1742155605814,16.90371769,127.31,127.29,0.063]
[1742155607218,23.18761769,127.31,127.29,0.063]
[1742155608031,16.90371769,127.31,127.29,0.063]
[1742155608536,23.18761769,127.31,127.29,0.063]
[1742155611835,16.90371769,127.3,127.29,0.063]
[1742155612948,24.44371769,127.3,127.29,0.063]
[1742155613353,7.54,127.3,127.29,0.063]
[1742155614930,13.8243,127.3,127.29,0.063]
[1742155615952,7.54,127.3,127.29,0.063]
[1742155616153,7.54,127.33,127.29,16.96671769]
[1742155616328,6.2824,127.34,127.3,16.90371769]
[1742155616535,23.90331769,127.35,127.3,16.90371769]
[1742155616536,13.2816,127.35,127.3,16.90371769]
[1742155616860,13.822,127.35,127.3,16.90371769]
[1742155617432,30.72571769,127.35,127.3,16.90371769]
[1742155617628,35.55336655,127.34,127.29,16.96671769]
[1742155617829,16.90371769,127.33,127.29,0.063]
[1742155618242,6.2833,127.32,127.29,0.063]
[1742155618755,23.18671769,127.33,127.29,0.063]
[1742155619261,6.2825,127.34,127.3,16.90371769]
[1742155621035,24.93214886,127.34,127.3,16.90371769]
[1742155621351,16.90371769,127.33,127.29,0.063]
[1742155622457,6.2833,127.32,127.29,0.063]
[1742155623836,23.18701769,127.32,127.29,0.063]
[1742155624055,6.2833,127.32,127.29,0.063]
[1742155624250,18.64964886,127.34,127.29,0.063]
[1742155624251,6.283,127.33,127.29,0.063]
[1742155625349,6.283,127.33,127.29,16.96671769]
[1742155625851,6.283,127.33,127.3,16.90371769]
[1742155626057,6.283,127.33,127.29,16.96671769]
[1742155628763,6.283,127.33,127.29,0.063]
[1742155628962,6.283,127.33,127.29,16.96671769]
[1742155631263,13.8225,127.34,127.3,16.90371769]
[1742155633569,0.03,127.35,127.33,16.90371769]
[1742155636180,0.03,127.38,127.37,16.90371769]
[1742155638936,0.03,127.38,127.37,23.46894083]
[1742155639141,0.03,127.38,127.37,30.05144083]
[1742155639948,0.03,127.38,127.37,31.60144083]
[1742155640842,0.03,127.38,127.37,48.50515852]
[1742155641047,0.03,127.38,127.37,67.15480738]
[1742155641269,0.03,127.4,127.37,67.15480738]
[1742155641442,0.03,127.4,127.39,17.18804083]
[1742155643068,0.03,127.4,127.39,23.46794083]
[1742155645376,0.03,127.4,127.39,16.90371769]
[1742155645751,0.03,127.4,127.39,17.18804083]
[1742155645957,0.03,127.4,127.39,23.46794083]
[1742155646368,0.03,127.4,127.39,17.18804083]
[1742155648357,0.03,127.4,127.39,42.11758969]
[1742155649551,0.03,127.41,127.39,43.2944529]
[1742155649755,0.03,127.41,127.4,16.90371769]
[1742155650563,0.03,127.41,127.4,23.18311769]
[1742155650747,0.03,127.41,127.4,42.11708969]
[1742155651062,0.03,127.47,127.43,20.0]
[1742155651383,16.90371769,127.57,127.49,20.0]
[1742155651674,16.90371769,127.56,127.51,16.90371769]
[1742155652154,24.42371769,127.56,127.51,16.90371769]
[1742155652352,6.272,127.55,127.51,16.90371769]
[1742155652568,6.272,127.55,127.5,16.90371769]
[1742155652773,23.17571769,127.55,127.5,16.90371769]
[1742155653073,23.17571769,127.55,127.48,0.28432314]
[1742155653074,6.272,127.55,127.51,16.90371769]
[1742155653251,7.52,127.56,127.53,16.90371769]
[1742155653446,6.2712,127.57,127.54,16.90371769]
[1742155653650,6.2707,127.58,127.55,16.90371769]
[1742155654167,6.2702,127.59,127.55,16.90371769]
[1742155654475,13.7902,127.59,127.55,16.90371769]
[1742155655369,0.2,127.63,127.58,16.90371769]
[1742155655572,0.2,127.63,127.61,16.90371769]
[1742155655761,0.2,127.63,127.62,16.90371769]
[1742155656946,23.37181769,127.63,127.58,16.90371769]
[1742155657360,16.90371769,127.62,127.57,16.90371769]
[1742155657579,16.90371769,127.61,127.56,36.90371769]
[1742155657953,35.55336655,127.62,127.56,36.90371769]
[1742155658188,18.64964886,127.62,127.58,16.90371769]
[1742155658560,6.2691,127.61,127.57,16.90371769]
[1742155659564,38.84551769,127.61,127.56,16.90371769]
[1742155659763,35.55336655,127.59,127.51,1.5939]
[1742155659965,16.90371769,127.58,127.51,1.5939]
[1742155660169,16.90371769,127.58,127.53,16.90371769]
[1742155660368,16.90371769,127.57,127.52,16.90371769]
[1742155660563,16.90371769,127.54,127.49,16.90371769]
[1742155660763,7.52,127.53,127.49,16.90371769]
[1742155660967,7.52,127.53,127.5,16.90371769]
[1742155661283,7.52,127.53,127.51,16.90371769]
[1742155661780,7.52,127.53,127.5,16.90371769]
[1742155661982,7.52,127.53,127.47,209.2139]
[1742155662178,7.52,127.53,127.49,16.90371769]
[1742155662690,6.2735,127.52,127.49,16.90371769]
[1742155663178,7.52,127.53,127.51,16.90371769]
[1742155663179,13.7931,127.53,127.51,16.90371769]
[1742155663784,7.52,127.55,127.52,16.90371769]
[1742155664082,7.52,127.55,127.53,16.90371769]
[1742155664375,7.52,127.55,127.54,16.90371769]
[1742155664613,7.52,127.55,127.52,16.90371769]
[1742155664785,6.2725,127.54,127.52,16.90371769]
[1742155665571,6.2725,127.54,127.51,16.90371769]
[1742155666268,6.2725,127.54,127.52,16.90371769]
[1742155667587,6.2725,127.54,127.53,16.90371769]
[1742155667973,6.2725,127.54,127.52,16.90371769]
[1742155668975,6.2725,127.54,127.51,16.90371769]
[1742155669172,6.2725,127.54,127.49,16.90371769]
[1742155669377,21.9538,127.54,127.5,16.90371769]
[1742155670183,6.2725,127.54,127.52,16.90371769]
[1742155670486,6.2725,127.54,127.53,16.90371769]
[1742155670866,6.2725,127.54,127.52,16.90371769]
[1742155672293,7.55,127.55,127.53,16.90371769]
[1742155672792,13.822,127.55,127.53,16.90371769]
[1742155672980,6.302,127.55,127.53,16.90371769]
[1742155673183,6.302,127.55,127.52,16.90371769]
[1742155673384,6.302,127.55,127.51,36.90371769]
[1742155674186,38.88581769,127.55,127.51,16.90371769]
[1742155674490,38.88581769,127.55,127.5,36.90371769]
[1742155676195,16.90371769,127.53,127.44,224.38371769]
[1742155676396,16.90371769,127.51,127.46,16.90371769]
[1742155676777,24.40371769,127.52,127.47,16.90371769]
[1742155677190,6.274,127.51,127.47,16.90371769]
[1742155677393,6.274,127.51,127.49,16.90371769]
[1742155677696,13.7736,127.52,127.5,16.90371769]
[1742155678696,7.5,127.52,127.5,16.90371769]
[1742155678884,13.8022,127.55,127.51,16.90371769]
[1742155679198,13.8022,127.55,127.52,16.90371769]
[1742155679897,7.53,127.55,127.53,16.90371769]
[1742155680265,7.53,127.55,127.51,16.90371769]
[1742155680266,13.8022,127.55,127.51,16.90371769]
[1742155682291,6.3022,127.55,127.51,16.90371769]
[1742155684087,6.3022,127.55,127.5,16.90371769]
[1742155685188,6.3022,127.55,127.51,16.90371769]
[1742155685583,6.3022,127.55,127.52,16.90371769]
[1742155685776,5.8022,127.55,127.52,16.90371769]
[1742155686502,5.8022,127.55,127.51,16.90371769]
[1742155687274,5.8022,127.55,127.52,16.90371769]
[1742155687797,58.00371769,127.59,127.53,16.90371769]
[1742155687976,6.2705,127.58,127.55,16.90371769]
[1742155688171,24.91964886,127.59,127.56,16.90371769]
[1742155688599,24.91964886,127.59,127.55,16.90371769]
[1742155688975,24.91964886,127.59,127.51,0.14216157]
[1742155688976,15.6726,127.62,127.56,16.90371769]
[1742155689172,15.6726,127.62,127.57,16.90371769]
[1742155689173,7.5,127.61,127.57,16.90371769]
[1742155689490,24.40371769,127.61,127.56,16.90371769]
[1742155689682,24.40371769,127.61,127.55,16.90371769]
[1742155691188,6.2695,127.6,127.57,16.90371769]
[1742155691387,6.2692,127.61,127.57,16.90371769]
[1742155691783,6.2992,127.61,127.57,16.90371769]
[1742155692200,6.2992,127.61,127.58,16.90371769]
[1742155692408,6.2992,127.61,127.59,16.90371769]
[1742155692781,6.2992,127.61,127.58,16.90371769]
[1742155693284,0.03,127.61,127.58,16.90371769]
[1742155694002,0.03,127.61,127.57,16.90371769]
[1742155694301,16.93371769,127.61,127.56,36.90371769]
[1742155694503,16.93371769,127.61,127.56,40.87748251]
[1742155695099,0.03,127.61,127.57,16.90371769]
[1742155695492,0.03,127.61,127.53,6.2727]
[1742155695493,16.90371769,127.6,127.55,16.90371769]
[1742155695901,35.58336655,127.61,127.56,16.90371769]
[1742155696888,6.2695,127.6,127.56,16.90371769]
[1742155698881,16.90371769,127.58,127.53,20.0]
[1742155699188,16.90371769,127.58,127.53,36.90371769]
[1742155699386,24.40371769,127.57,127.52,20.76458656]
[1742155699589,24.40371769,127.57,127.52,16.90371769]
[1742155700506,6.2715,127.56,127.52,16.90371769]
[1742155701209,38.85401769,127.56,127.51,16.90371769]
[1742155701504,16.90371769,127.54,127.49,20.82145911]
[1742155702711,6.273,127.53,127.49,16.90371769]
[1742155703004,6.273,127.53,127.48,0.063]
[1742155703005,16.90371769,127.51,127.48,0.063]
[1742155703189,16.90371769,127.5,127.48,0.063]
[1742155703391,16.90371769,127.51,127.48,0.063]
[1742155703806,16.90371769,127.5,127.48,0.063]
[1742155704302,16.90371769,127.5,127.49,0.063]
[1742155704503,43.05336655,127.52,127.49,0.063]
[1742155704881,6.274,127.51,127.49,0.063]
[1742155705613,23.17771769,127.51,127.49,0.063]
[1742155705981,35.55336655,127.5,127.49,0.063]
[1742155707211,41.82786655,127.5,127.49,0.063]
[1742155708787,18.64964886,127.49,127.48,0.063]
[1742155708986,35.55336655,127.49,127.48,0.063]
[1742155709203,0.28432314,127.48,127.42,16.90371769]
[1742155709402,18.64964886,127.46,127.42,16.90371769]
[1742155709632,35.55336655,127.46,127.41,16.90371769]
[1742155710399,18.64964886,127.46,127.42,16.90371769]
[1742155712106,6.2769,127.45,127.42,16.90371769]
[1742155713107,6.2769,127.45,127.41,16.90371769]
[1742155713516,6.2769,127.45,127.4,18.54441769]
[1742155713912,6.2769,127.45,127.41,16.90371769]
[1742155715612,6.2769,127.45,127.4,18.54441769]
[1742155716299,23.18061769,127.45,127.4,16.90371769]
[1742155716500,18.64964886,127.44,127.4,16.90371769]
[1742155716706,18.64964886,127.44,127.39,0.063]
[1742155717015,16.90371769,127.43,127.39,0.063]
[1742155717216,7.5,127.42,127.39,0.063]
[1742155718116,18.64964886,127.41,127.39,0.063]
[1742155718300,7.5,127.42,127.39,0.063]
[1742155718616,13.7787,127.42,127.39,0.063]
[1742155720621,7.5,127.42,127.4,16.90371769]
[1742155723518,13.7784,127.42,127.39,16.96671769]
[1742155724118,13.7784,127.42,127.4,16.90371769]
[1742155724507,13.7784,127.42,127.39,16.96671769]
[1742155724908,13.7784,127.42,127.39,0.063]
[1742155727426,13.7784,127.42,127.39,16.96671769]
[1742155727935,13.7784,127.42,127.39,0.063]
[1742155728938,13.7784,127.42,127.39,16.96671769]
[1742155729105,7.5,127.42,127.39,16.96671769]
[1742155729436,26.14964886,127.46,127.41,16.90371769]
[1742155729637,26.14964886,127.46,127.42,16.90371769]
[1742155729933,43.05336655,127.46,127.41,16.90371769]
[1742155730419,49.32976655,127.46,127.41,16.90371769]
[1742155732727,32.42604886,127.46,127.41,16.90371769]
[1742155732920,49.32976655,127.46,127.41,16.90371769]
[1742155733123,49.32976655,127.46,127.4,18.49801769]
[1742155734326,6.2774,127.44,127.4,18.49801769]
[1742155735232,6.2774,127.44,127.4,12.37987997]
[1742155735528,6.2774,127.44,127.41,10.78557997]
[1742155735733,26.14964886,127.46,127.42,10.78557997]
[1742155735903,32.42624886,127.46,127.42,10.78557997]
[1742155736103,32.42624886,127.46,127.41,10.78557997]
[1742155736418,43.21182883,127.46,127.41,10.78557997]
[1742155738330,35.71262883,127.44,127.39,0.063]
[1742155738522,10.78557997,127.41,127.39,0.063]
[1742155739124,18.28557997,127.41,127.39,0.063]
[1742155739831,7.5,127.41,127.39,0.063]
[1742155741131,6.2794,127.4,127.39,0.063]
[1742155743234,6.2789,127.41,127.39,0.063]
[1742155745324,6.2789,127.41,127.39,10.84857997]
[1742155746641,6.2789,127.41,127.39,0.063]
[1742155746936,17.06447997,127.41,127.39,0.063]
[1742155747436,6.2789,127.41,127.39,0.063]
[1742155748517,6.2789,127.41,127.39,10.84857997]
[1742155749640,34.34544886,127.43,127.4,10.78557997]
[1742155749641,24.92774886,127.43,127.4,10.78557997]
[1742155749843,13.7776,127.44,127.41,10.78557997]
[1742155750142,13.7776,127.44,127.42,10.78557997]
[1742155750442,7.5,127.46,127.43,10.78557997]
[1742155750624,18.5759793,127.48,127.45,10.78557997]
[1742155750935,12.3003793,127.48,127.47,10.78557997]
[1742155751133,12.3003793,127.48,127.47,16.836614]
[1742155751522,18.5757793,127.48,127.47,16.836614]
[1742155751724,18.5757793,127.48,127.46,16.836614]
[1742155751924,35.4123933,127.48,127.43,16.836614]